bitfinex-derivatives/quotes_BTCF0:USTF0_20251215
["timestamp","ask_amount","ask_price","bid_price","bid_amount"]
[1765821732280,0.20011077,85701.0,85700.0,0.69924]
[1765821732482,0.20311077,85701.0,85700.0,0.69924]
[1765821732689,0.20311077,85701.0,85700.0,0.7109088]
[1765821732893,0.09311077,85701.0,85700.0,0.82759423]
[1765821733094,0.00017506,85709.0,85708.0,0.7109077]
[1765821733392,0.18017506,85709.0,85708.0,1.0717077]
[1765821733597,0.85365506,85709.0,85708.0,0.3608]
[1765821733795,0.85365506,85709.0,85699.0,0.3608]
[1765821733796,0.0116684,85704.0,85703.0,0.69924]
[1765821733994,0.19171894,85704.0,85703.0,0.69924]
[1765821734195,0.18005054,85704.0,85703.0,0.69924]
[1765821735095,0.01405054,85704.0,85703.0,0.70024]
[1765821735394,0.20405054,85704.0,85703.0,0.70024]
[1765821735594,0.87753054,85704.0,85703.0,0.001]
[1765821735795,1.05978054,85704.0,85703.0,0.001]
[1765821736384,1.05878054,85704.0,85703.0,0.001]
[1765821736592,1.05978054,85704.0,85703.0,0.001]
[1765821736795,0.6851497,85693.0,85685.0,0.0116708]
[1765821736992,0.2116697,85693.0,85692.0,0.69941506]
[1765821737395,0.02,85693.0,85692.0,0.91479506]
[1765821737999,0.00305054,85704.0,85703.0,0.69924]
[1765821738198,0.19471884,85704.0,85703.0,0.69924]
[1765821738500,0.19471884,85704.0,85699.0,0.3608]
[1765821738501,0.67348,85700.0,85699.0,0.7249389]
[1765821738804,0.18,85700.0,85699.0,1.0717089]
[1765821739301,0.0116684,85703.0,85699.0,1.0717089]
[1765821739302,0.0116684,85703.0,85702.0,0.35247]
[1765821739506,0.2016684,85703.0,85702.0,0.35247]
[1765821739690,0.2016684,85703.0,85702.0,0.69924]
[1765821739897,0.19,85703.0,85702.0,0.69924]
[1765821740098,0.2016684,85703.0,85702.0,0.69924]
[1765821740306,0.8751484,85703.0,85702.0,0.69924]
[1765821740614,0.8751484,85703.0,85692.0,0.21555506]
[1765821740615,0.0116697,85693.0,85692.0,0.69941506]
[1765821740818,0.8751497,85693.0,85692.0,0.69941506]
[1765821741119,0.8751497,85693.0,85692.0,0.00017506]
[1765821742123,0.8791497,85693.0,85692.0,0.00117506]
[1765821742515,1.2399497,85693.0,85692.0,0.00117506]
[1765821742715,0.67348,85675.0,85674.0,0.3608]
[1765821742916,0.86348,85675.0,85674.0,0.71327]
[1765821743115,0.86348,85675.0,85674.0,1.06004]
[1765821743314,0.67348,85675.0,85674.0,1.06004]
[1765821743509,0.87348,85675.0,85674.0,1.06004]
[1765821743920,0.01184626,85683.0,85682.0,0.69924]
[1765821744117,0.20184626,85683.0,85682.0,1.06004]
[1765821744419,0.01184626,85683.0,85682.0,1.06004]
[1765821744813,0.00017506,85683.0,85682.0,1.06004]
[1765821745108,0.16017506,85683.0,85682.0,1.06004]
[1765821745309,0.16017506,85683.0,85682.0,1.06104]
[1765821745310,0.00617506,85683.0,85682.0,1.06104]
[1765821745909,0.18617506,85683.0,85682.0,1.06104]
[1765821746115,0.00617506,85683.0,85682.0,1.06104]
[1765821746919,0.00499996,85683.0,85682.0,1.06104]
[1765821747118,0.01,85696.0,85694.0,0.7109095]
[1765821747425,0.01,85696.0,85695.0,0.69924]
[1765821748029,0.0116691,85698.0,85697.0,0.69924]
[1765821748226,0.0216691,85698.0,85697.0,0.69924]
[1765821748424,0.01,85698.0,85697.0,0.69924]
[1765821749024,0.01,85698.0,85697.0,0.81592951]
[1765821749225,0.0002256,85704.0,85703.0,0.7109084]
[1765821749524,0.0402256,85704.0,85703.0,1.0717084]
[1765821750318,0.1702256,85704.0,85703.0,1.0717084]
[1765821750632,0.1902256,85704.0,85703.0,1.0717084]
[1765821750924,0.0062256,85704.0,85703.0,1.0727084]
[1765821751226,0.44824273,85740.0,85703.0,1.0727084]
[1765821751227,1.0528151,85727.0,85726.0,0.66333]
[1765821751434,1.2528151,85727.0,85726.0,0.66333]
[1765821751933,1.2528151,85727.0,85726.0,0.68450231]
[1765821752919,1.2528151,85727.0,85726.0,0.34757231]
[1765821753124,1.2528151,85727.0,85726.0,0.02117231]
[1765821753324,1.2528151,85727.0,85720.0,0.342956]
[1765821753325,0.32748,85721.0,85720.0,0.342956]
[1765821753518,0.50748,85721.0,85720.0,0.342956]
[1765821753718,0.50748,85721.0,85720.0,0.700296]
[1765821753919,0.50748,85721.0,85720.0,0.68863]
[1765821754119,0.50748,85721.0,85720.0,0.70878156]
[1765821754525,0.18,85721.0,85720.0,0.70878156]
[1765821754729,0.184,85721.0,85720.0,0.70978156]
[1765821754936,0.185,85721.0,85720.0,0.70978156]
[1765821755229,0.1,85734.0,85721.0,0.0233318]
[1765821755434,0.0023327,85738.0,85734.0,0.89073]
[1765821755637,0.18017506,85735.0,85734.0,0.89073]
[1765821757238,0.18317506,85735.0,85734.0,0.89073]
[1765821757726,0.18517506,85735.0,85734.0,0.68863]
[1765821758035,0.50965506,85735.0,85734.0,0.68863]
[1765821758331,0.0116651,85727.0,85726.0,1.04943]
[1765821758526,0.8637251,85727.0,85726.0,1.04943]
[1765821759327,0.6837259,85721.0,85720.0,0.02015156]
[1765821759636,0.67206,85719.0,85709.0,0.3608]
[1765821759828,0.83206,85719.0,85713.0,0.011667]
[1765821760032,0.6837276,85709.0,85708.0,0.3608]
[1765821760327,0.8737276,85709.0,85708.0,0.3608]
[1765821761236,0.8747276,85709.0,85708.0,0.3608]
[1765821761438,0.8747276,85709.0,85708.0,0.38116912]
[1765821761628,0.6837287,85701.0,85700.0,0.00017506]
[1765821761822,0.8737287,85701.0,85700.0,0.02120312]
[1765821762032,0.3618,85709.0,85700.0,0.70983312]
[1765821762333,0.67206,85701.0,85700.0,0.02120312]
[1765821762533,0.67206,85701.0,85700.0,0.70983312]
[1765821762534,0.2,85701.0,85700.0,0.70983312]
[1765821763444,0.2,85701.0,85700.0,0.71083312]
[1765821764137,0.3608,85723.0,85716.0,0.78968]
[1765821764342,0.0116648,85730.0,85716.0,0.78968]
[1765821764541,0.0116642,85734.0,85716.0,0.78968]
[1765821765043,0.0116629,85744.0,85737.0,0.68863]
[1765821765236,0.2023327,85738.0,85737.0,1.04943]
[1765821765840,0.3608,85767.0,85750.0,0.700292]
[1765821766040,0.6837203,85763.0,85758.0,0.3608]
[1765821766342,0.0116616,85753.0,85752.0,0.68863]
[1765821766648,0.2016616,85753.0,85752.0,0.68863]
[1765821766945,0.19,85753.0,85752.0,0.68863]
[1765821767649,0.196,85753.0,85752.0,0.68963]
[1765821768341,0.5568,85753.0,85752.0,0.68963]
[1765821768542,0.52348,85753.0,85752.0,0.68963]
[1765821768733,1.22886,85753.0,85752.0,0.001]
[1765821768938,0.87406,85753.0,85752.0,0.001]
[1765821769146,0.87406,85753.0,85752.0,0.33229]
[1765821769445,0.87406,85753.0,85752.0,0.7012917]
[1765821769646,0.52948,85753.0,85752.0,0.7012917]
[1765821769843,0.52948,85753.0,85752.0,1.05043]
[1765821770040,0.202,85753.0,85752.0,1.05043]
[1765821770242,0.082,85753.0,85752.0,1.16704467]
[1765821770442,0.012,85753.0,85752.0,1.16704467]
[1765821770644,0.202,85753.0,85752.0,1.16704467]
[1765821770845,0.012,85753.0,85752.0,1.16704467]
[1765821771049,0.212,85753.0,85752.0,1.05043]
[1765821771945,0.182,85753.0,85752.0,1.05043]
[1765821773750,0.85406,85753.0,85752.0,1.05043]
[1765821773951,0.182,85753.0,85752.0,1.05043]
[1765821774148,0.202,85753.0,85752.0,1.25253]
[1765821774556,0.182,85753.0,85752.0,1.36914467]
[1765821774852,0.212,85753.0,85752.0,1.36914467]
[1765821775347,0.00017495,85767.0,85766.0,0.7002898]
[1765821775549,0.17017495,85767.0,85766.0,0.7002898]
[1765821776341,0.17017495,85767.0,85766.0,0.7012898]
[1765821776546,0.17017495,85767.0,85766.0,0.68963]
[1765821776547,0.84223495,85767.0,85766.0,0.68963]
[1765821776941,0.84223495,85767.0,85766.0,0.001]
[1765821777957,0.67206,85765.0,85764.0,0.01166]
[1765821778149,0.84206,85765.0,85764.0,0.01166]
[1765821778345,0.84206,85765.0,85764.0,0.70029]
[1765821779554,0.84206,85765.0,85764.0,0.70129]
[1765821779953,0.84206,85765.0,85764.0,0.001]
[1765821780445,1.20286,85765.0,85764.0,0.001]
[1765821780649,0.6837219,85751.0,85750.0,0.00017495]
[1765821780841,0.8537219,85751.0,85750.0,0.00017495]
[1765821781157,0.84206,85751.0,85750.0,0.00017495]
[1765821781850,0.86231,85764.0,85763.0,0.0116602]
[1765821782052,0.83481,85764.0,85763.0,0.6720402]
[1765821782354,0.51017,85764.0,85763.0,0.6720402]
[1765821782556,0.17,85764.0,85763.0,0.6720402]
[1765821782851,0.83481,85764.0,85763.0,0.3384802]
[1765821783042,0.66481,85763.0,85762.0,1.02118]
[1765821783248,0.66481,85763.0,85757.0,0.338481]
[1765821783249,0.34017,85758.0,85757.0,0.338481]
[1765821783448,0.82481,85758.0,85757.0,0.338481]
[1765821783643,0.82481,85758.0,85757.0,0.672041]
[1765821783848,0.001,85764.0,85763.0,0.6720402]
[1765821784049,0.49117,85764.0,85763.0,0.6720402]
[1765821784350,0.151,85764.0,85763.0,0.6720402]
[1765821784751,0.15,85764.0,85763.0,0.6720402]
[1765821785452,0.00017495,85767.0,85766.0,0.6720398]
[1765821785658,0.05017495,85767.0,85766.0,0.6720398]
[1765821786359,0.0151473,85767.0,85766.0,0.78863544]
[1765821786660,0.01432236,85767.0,85766.0,0.78863544]
[1765821786855,0.01432236,85767.0,85766.0,0.81714621]
[1765821787244,0.0116591,85772.0,85771.0,0.6720391]
[1765821787245,0.6764691,85772.0,85771.0,0.6720391]
[1765821787561,0.8464691,85772.0,85771.0,0.6720391]
[1765821787853,0.3518304,85762.0,85761.0,1.09456]
[1765821788062,0.8764704,85762.0,85761.0,1.09456]
[1765821788250,0.8764704,85762.0,85761.0,0.3608]
[1765821788453,0.3518316,85753.0,85752.0,0.68762]
[1765821788645,0.8764716,85753.0,85752.0,0.68762]
[1765821789064,0.86481,85753.0,85752.0,1.02118]
[1765821789266,0.66481,85751.0,85750.0,0.00017495]
[1765821789556,0.86481,85751.0,85750.0,0.00017495]
[1765821789757,0.3608,85764.0,85760.0,0.66038]
[1765821789954,0.19183545,85761.0,85760.0,0.66038]
[1765821790260,0.85664545,85761.0,85760.0,0.32682]
[1765821790451,0.011661,85758.0,85755.0,0.0116612]
[1765821790653,0.34017,85756.0,85755.0,0.3384812]
[1765821790959,0.18,85756.0,85755.0,0.6720412]
[1765821791357,0.18,85756.0,85751.0,0.3608]
[1765821791358,0.34017,85752.0,85751.0,0.3608]
[1765821791564,0.8664717,85752.0,85751.0,0.3724619]
[1765821791857,0.00017495,85761.0,85758.0,0.3384808]
[1765821792063,0.00017495,85761.0,85760.0,0.66038]
[1765821792657,0.29,85774.0,85773.0,0.6720389]
[1765821792658,0.01,85774.0,85773.0,0.6720389]
[1765821792859,0.601827,85787.0,85786.0,0.32682]
[1765821793046,0.0116572,85785.0,85781.0,0.0116577]
[1765821793251,0.34017,85782.0,85781.0,0.0116577]
[1765821793458,0.52017,85782.0,85781.0,0.6720377]
[1765821794160,0.52017,85782.0,85781.0,0.69285112]
[1765821794161,0.18,85782.0,85781.0,0.69285112]
[1765821794356,0.00017495,85790.0,85787.0,0.0116569]
[1765821794357,0.66481,85788.0,85787.0,0.0116569]
[1765821794557,0.86481,85788.0,85787.0,0.0116569]
[1765821794962,0.86481,85788.0,85787.0,0.3384769]
[1765821795265,0.2,85788.0,85787.0,0.6720369]
[1765821795468,0.2,85788.0,85787.0,0.8804875]
[1765821795658,0.54017,85788.0,85787.0,0.78860399]
[1765821795858,0.66481,85787.0,85786.0,0.0116571]
[1765821796068,0.84481,85787.0,85786.0,0.3384771]
[1765821796363,0.6764676,85782.0,85781.0,0.34763342]
[1765821796573,0.8364676,85782.0,85781.0,0.34763342]
[1765821797264,0.8364676,85782.0,85781.0,0.68119342]
[1765821797566,0.16,85782.0,85781.0,0.68119342]
[1765821797862,0.82481,85782.0,85781.0,0.68119342]
[1765821798054,0.6764687,85774.0,85773.0,0.00017495]
[1765821798258,0.8464687,85774.0,85773.0,0.0209816]
[1765821799574,0.8474687,85774.0,85773.0,0.0209816]
[1765821800068,0.171,85774.0,85773.0,0.6813616]
[1765821800266,0.83581,85774.0,85773.0,0.6813616]
[1765821800660,0.83581,85774.0,85773.0,0.0209816]
[1765821800961,1.19761,85774.0,85773.0,0.0209816]
[1765821801972,1.19761,85774.0,85773.0,0.3478016]
[1765821802167,1.19761,85774.0,85773.0,0.0209816]
[1765821802361,1.19661,85774.0,85773.0,0.0209816]
[1765821802761,1.19561,85774.0,85773.0,0.0209816]
[1765821803370,1.19761,85774.0,85773.0,0.0209816]
[1765821803960,1.19661,85774.0,85773.0,0.0209816]
[1765821804160,1.19761,85774.0,85773.0,0.0209816]
[1765821804761,0.66481,85755.0,85753.0,0.08305748]
[1765821805070,0.8464713,85755.0,85752.0,0.0116616]
[1765821805371,0.83481,85755.0,85754.0,0.38153441]
[1765821805669,0.8464713,85755.0,85754.0,0.38153441]
[1765821805870,0.8464713,85755.0,85754.0,0.38353441]
[1765821806368,0.8464713,85755.0,85754.0,0.38553441]
[1765821806873,0.8464713,85755.0,85754.0,0.02473441]
[1765821807170,0.6764724,85747.0,85746.0,0.00017485]
[1765821807369,0.6764724,85747.0,85739.0,0.3608]
[1765821807370,0.8860334,85740.0,85739.0,0.3608]
[1765821807561,0.66481,85730.0,85728.0,0.46462404]
[1765821807757,0.85481,85730.0,85728.0,0.3608]
[1765821808361,0.85481,85730.0,85729.0,0.02088625]
[1765821808564,0.85481,85730.0,85729.0,0.00010559]
[1765821808764,0.85481,85730.0,85729.0,0.02112241]
[1765821809575,0.6764758,85722.0,85721.0,4.96e-06]
[1765821809778,0.66481,85713.0,85712.0,0.10382404]
[1765821809977,0.84481,85713.0,85712.0,0.10382404]
[1765821810268,0.84481,85713.0,85712.0,0.12499206]
[1765821810473,0.1800829,85713.0,85712.0,0.67204802]
[1765821810865,0.8774129,85713.0,85712.0,0.02116802]
[1765821811063,0.8774129,85713.0,85706.0,0.0116679]
[1765821811264,0.35353,85706.0,85705.0,0.0116681]
[1765821811459,0.1800829,85713.0,85708.0,0.0116677]
[1765821811460,8.29e-05,85713.0,85708.0,0.0116677]
[1765821811677,0.69733,85712.0,85711.0,0.10459767]
[1765821811869,0.69733,85712.0,85708.0,0.6723577]
[1765821811870,0.35353,85709.0,85708.0,0.6723577]
[1765821812075,0.55353,85709.0,85708.0,0.6723577]
[1765821812276,0.51353,85709.0,85708.0,0.6723577]
[1765821812774,0.16,85709.0,85708.0,0.6723577]
[1765821813175,0.16,85709.0,85708.0,0.6743577]
[1765821813674,8.29e-05,85713.0,85712.0,0.6723572]
[1765821813874,0.0200829,85713.0,85712.0,1.0331572]
[1765821814074,0.1900829,85713.0,85712.0,1.13767972]
[1765821814280,0.1900829,85713.0,85712.0,1.13765497]
[1765821815178,0.8919529,85713.0,85712.0,0.77685497]
[1765821815372,0.8919529,85713.0,85712.0,0.6723572]
[1765821816074,0.70187,85710.0,85709.0,0.11616517]
[1765821816270,0.70187,85708.0,85707.0,0.10449777]
[1765821816470,0.70187,85708.0,85706.0,0.02049454]
[1765821816471,0.7135378,85707.0,85706.0,0.12499231]
[1765821816778,0.8835378,85707.0,85706.0,0.02049454]
[1765821816968,0.70187,85706.0,85705.0,0.46529777]
[1765821817273,0.90187,85706.0,85705.0,0.3608]
[1765821817582,0.7019529,85713.0,85712.0,0.6723572]
[1765821817771,0.1700829,85713.0,85712.0,0.6723572]
[1765821817963,8.29e-05,85713.0,85712.0,1.0331572]
[1765821818170,0.0200829,85713.0,85712.0,1.0331572]
[1765821818474,0.1900829,85713.0,85712.0,1.0331572]
[1765821818877,0.0200829,85713.0,85712.0,1.0331572]
[1765821819084,8.29e-05,85713.0,85712.0,1.14982629]
[1765821819277,2.9e-06,85713.0,85712.0,1.14982629]
[1765821819673,0.00017496,85718.0,85717.0,0.6723565]
[1765821819873,0.91143,85740.0,85739.0,0.0116635]
[1765821820070,0.90187,85740.0,85739.0,0.3389535]
[1765821820377,0.2,85740.0,85739.0,1.0331535]
[1765821820882,0.2,85740.0,85739.0,1.14982259]
[1765821821174,0.00017496,85748.0,85747.0,0.6723524]
[1765821821380,0.17017496,85748.0,85747.0,0.6723524]
[1765821821771,0.51353496,85748.0,85747.0,0.6723524]
[1765821821975,0.87204496,85748.0,85747.0,0.3608]
[1765821822373,0.34336,85747.0,85746.0,0.0116625]
[1765821822580,0.87187,85747.0,85746.0,0.0116625]
[1765821823075,0.70187,85741.0,85740.0,0.3608]
[1765821823271,0.87187,85741.0,85740.0,0.3724634]
[1765821823472,0.87187,85741.0,85740.0,1.0331534]
[1765821823774,0.51336,85741.0,85740.0,1.0331534]
[1765821823970,0.17,85741.0,85740.0,1.0331534]
[1765821824574,0.70587,85747.0,85746.0,0.3389525]
[1765821824880,0.194,85747.0,85746.0,0.6723525]
[1765821825181,0.192,85747.0,85746.0,0.6723525]
[1765821825381,0.032,85747.0,85746.0,0.6723525]
[1765821825681,0.00017496,85748.0,85747.0,0.66069]
[1765821825983,0.05017496,85748.0,85747.0,0.66069]
[1765821826282,0.17017496,85748.0,85747.0,0.66069]
[1765821826673,0.00017496,85748.0,85747.0,0.66069]
[1765821826866,0.00017496,85748.0,85747.0,1.02149]
[1765821826867,0.05117496,85748.0,85747.0,1.02149]
[1765821827268,0.08,85761.0,85760.0,0.66069]
[1765821827577,0.3608,85769.0,85768.0,0.6723495]
[1765821827775,0.3550198,85766.0,85765.0,0.32729]
[1765821827980,0.0116609,85758.0,85754.0,0.3608]
[1765821828174,0.2116609,85758.0,85754.0,0.3608]
[1765821828574,0.2116609,85758.0,85757.0,0.66069]
[1765821828777,0.5550209,85758.0,85757.0,0.66069]
[1765821828977,0.2,85758.0,85757.0,0.6723509]
[1765821829183,0.00017496,85765.0,85764.0,0.6723501]
[1765821829479,0.00017496,85765.0,85764.0,1.2338501]
[1765821829675,0.06017496,85765.0,85764.0,1.2338501]
[1765821830475,0.00017496,85765.0,85764.0,1.2338501]
[1765821830682,0.19017496,85765.0,85764.0,1.0351501]
[1765821831175,0.03017496,85765.0,85764.0,1.0351501]
[1765821831376,0.17017496,85765.0,85764.0,1.0351501]
[1765821831583,0.17017496,85765.0,85764.0,1.0371501]
[1765821831773,0.00017496,85765.0,85764.0,1.2377701]
[1765821831974,0.03017496,85765.0,85764.0,1.2377701]
[1765821832176,0.03017496,85765.0,85764.0,1.35436845]
[1765821832379,0.03017496,85765.0,85764.0,1.35236845]
[1765821833084,0.03017496,85765.0,85764.0,1.35336845]
[1765821833280,0.00017496,85765.0,85764.0,1.35336845]
[1765821833480,0.00017496,85765.0,85764.0,1.35036845]
[1765821833684,0.00017496,85765.0,85764.0,1.35236845]
[1765821833888,0.7135271,85787.0,85786.0,0.66069]
[1765821834074,0.9035271,85787.0,85786.0,0.32729]
[1765821834280,0.7135274,85784.0,85783.0,0.0116574]
[1765821834480,0.8835274,85784.0,85783.0,0.0116574]
[1765821834681,0.70187,85774.0,85773.0,0.66069]
[1765821834880,0.19,85774.0,85773.0,0.69274397]
[1765821835684,0.53336,85774.0,85773.0,0.69274397]
[1765821835987,0.191,85774.0,85773.0,0.69274397]
[1765821836374,0.19,85774.0,85773.0,0.69274397]
[1765821836576,0.191,85774.0,85773.0,0.69274397]
[1765821836881,0.191,85774.0,85773.0,1.54357009]
[1765821837082,0.00017485,85782.0,85781.0,0.6723478]
[1765821837287,0.06017485,85782.0,85781.0,1.0331478]
[1765821837581,0.06017485,85782.0,85781.0,1.14973392]
[1765821837784,0.00017485,85782.0,85781.0,1.14973392]
[1765821837980,0.05017485,85782.0,85781.0,1.14973392]
[1765821838176,0.00017485,85782.0,85781.0,1.14973392]
[1765821838376,0.06117485,85782.0,85781.0,1.14973392]
[1765821839077,0.18117485,85782.0,85781.0,1.14973392]
[1765821839286,0.3550187,85776.0,85775.0,1.39489]
[1765821839488,0.3550187,85776.0,85773.0,0.02039507]
[1765821839489,0.70187,85774.0,85773.0,0.02039507]
[1765821839783,0.70187,85766.0,85765.0,0.68190715]
[1765821840086,0.70187,85773.0,85772.0,0.32729]
[1765821840389,0.70187,85773.0,85765.0,0.02121715]
[1765821840390,0.70187,85766.0,85765.0,0.02121715]
[1765821840586,0.90187,85766.0,85765.0,0.02121715]
[1765821840986,0.2,85766.0,85765.0,0.69356715]
[1765821841787,0.3421382,85778.0,85777.0,0.0116583]
[1765821841993,0.5421382,85778.0,85777.0,0.71031]
[1765821842383,0.6999098,85766.0,85765.0,0.02121715]
[1765821842584,0.8899098,85766.0,85765.0,0.02121715]
[1765821843285,0.87825,85766.0,85765.0,0.03287715]
[1765821843486,0.87825,85766.0,85765.0,0.02121715]
[1765821845194,0.87925,85766.0,85765.0,0.02121715]
[1765821845891,0.001,85766.0,85765.0,0.73152715]
[1765821846195,0.011,85766.0,85765.0,0.84812414]
[1765821846795,0.57048,85779.0,85778.0,0.71031]
[1765821846994,0.39776,85788.0,85781.0,0.7219678]
[1765821847182,0.19183245,85782.0,85781.0,0.7219678]
[1765821847388,0.86842485,85782.0,85781.0,0.7219678]
[1765821847692,0.68825,85779.0,85778.0,0.3608]
[1765821847898,0.0116587,85775.0,85765.0,0.02325715]
[1765821848094,0.33048,85779.0,85778.0,0.71031]
[1765821848291,0.49048,85779.0,85778.0,0.71031]
[1765821848491,0.16,85779.0,85778.0,0.71031]
[1765821848699,0.16,85779.0,85773.0,0.3608]
[1765821848700,0.68825,85775.0,85774.0,0.0116587]
[1765821848889,0.86825,85775.0,85774.0,0.0116587]
[1765821849090,0.8799086,85775.0,85774.0,0.35597]
[1765821849290,0.6999097,85767.0,85766.0,0.35597]
[1765821849492,0.68825,85766.0,85765.0,0.02425715]
[1765821849691,0.88825,85766.0,85765.0,0.02125715]
[1765821850195,0.88825,85766.0,85753.0,0.3608]
[1765821850196,0.6999114,85754.0,85753.0,0.3608]
[1765821850396,0.8999114,85754.0,85753.0,0.3608]
[1765821850902,0.8999114,85754.0,85753.0,0.02094198]
[1765821851203,0.68825,85750.0,85749.0,0.09524832]
[1765821851401,0.88825,85750.0,85749.0,0.08358622]
[1765821851602,0.88825,85750.0,85749.0,0.02022748]
[1765821851805,0.68825,85747.0,85746.0,0.0116625]
[1765821851992,0.85825,85747.0,85746.0,0.3676325]
[1765821852302,0.85825,85747.0,85746.0,0.7219725]
[1765821852488,0.85825,85747.0,85746.0,0.82588501]
[1765821852892,0.85825,85747.0,85746.0,0.7423989]
[1765821853293,0.85825,85747.0,85746.0,0.0340889]
[1765821853702,0.85825,85747.0,85746.0,0.10595719]
[1765821854002,0.85825,85747.0,85746.0,0.0224264]
[1765821854203,0.85825,85747.0,85746.0,0.10595719]
[1765821854405,0.85825,85747.0,85746.0,0.0224264]
[1765821854699,0.85825,85747.0,85746.0,0.7327364]
[1765821854905,0.85825,85747.0,85746.0,0.7357364]
[1765821855101,0.17,85747.0,85746.0,0.7357364]
[1765821855406,0.50048,85747.0,85746.0,0.7357764]
[1765821855601,0.85825,85747.0,85746.0,0.3814364]
[1765821855808,0.85825,85747.0,85746.0,0.0254664]
[1765821856106,0.85825,85747.0,85746.0,0.3814364]
[1765821856306,0.85825,85747.0,85746.0,0.0254664]
[1765821857001,0.85825,85747.0,85746.0,0.7357764]
[1765821857201,0.17,85747.0,85746.0,0.7357764]
[1765821857910,0.6999118,85752.0,85751.0,0.0116619]
[1765821858203,0.69825,85752.0,85751.0,0.7219719]
[1765821858393,0.68825,85761.0,85760.0,0.0116605]
[1765821858599,0.85825,85761.0,85760.0,0.7219705]
[1765821858802,0.85825,85761.0,85760.0,1.0827705]
[1765821859204,0.3608,85781.0,85761.0,0.71031]
[1765821859401,0.20017485,85762.0,85761.0,0.71031]
[1765821860305,0.88842485,85762.0,85761.0,0.71031]
[1765821861405,0.6999105,85761.0,85760.0,0.3618]
[1765821861612,0.68825,85754.0,85753.0,0.3724614]
[1765821861804,0.68942485,85762.0,85761.0,0.7219705]
[1765821862009,0.88108525,85762.0,85761.0,0.7219705]
[1765821862397,0.18017485,85762.0,85760.0,0.0116605]
[1765821862602,0.18017485,85762.0,85761.0,1.07111]
[1765821863103,0.51065485,85762.0,85761.0,0.71031]
[1765821863307,0.68825,85761.0,85760.0,0.7229705]
[1765821863610,0.87825,85761.0,85760.0,0.35697]
[1765821863804,0.87825,85761.0,85760.0,0.3686306]
[1765821864116,0.87825,85761.0,85760.0,0.3676306]
[1765821864801,0.87825,85761.0,85760.0,0.3686306]
[1765821864996,0.87825,85761.0,85760.0,0.0126606]
[1765821865303,0.87925,85761.0,85760.0,0.001]
[1765821865702,0.87925,85761.0,85760.0,0.71131]
[1765821866504,0.87925,85761.0,85760.0,0.35697]
[1765821867813,0.87925,85761.0,85760.0,0.71131]
[1765821869107,0.87925,85761.0,85760.0,0.001]
[1765821869603,0.87925,85761.0,85760.0,0.35697]
[1765821870209,0.8909105,85761.0,85760.0,0.35697]
[1765821871004,0.87925,85761.0,85760.0,0.35697]
[1765821871199,0.87925,85761.0,85760.0,0.001]
[1765821871412,0.191,85761.0,85760.0,0.67175]
[1765821871712,0.191,85761.0,85760.0,1.23694]
[1765821871713,0.061,85761.0,85760.0,1.23694]
[1765821872110,0.171,85761.0,85760.0,1.23694]
[1765821872315,0.041,85761.0,85760.0,1.23694]
[1765821873009,0.031,85761.0,85760.0,1.23694]
[1765821873601,0.001,85761.0,85760.0,1.23694]
[1765821874015,0.70849,85761.0,85760.0,0.69319]
[1765821874312,0.89849,85761.0,85760.0,1.04598]
[1765821874503,0.89849,85761.0,85760.0,0.3618]
[1765821874912,0.89849,85761.0,85760.0,1.07471]
[1765821875105,0.86849,85761.0,85760.0,1.07371]
[1765821875308,1.22829,85761.0,85760.0,0.71391]
[1765821875609,1.22829,85761.0,85760.0,0.001]
[1765821876016,1.22829,85761.0,85746.0,0.0321289]
[1765821876017,0.70749,85747.0,85746.0,0.0321289]
[1765821876317,0.87749,85747.0,85746.0,0.0321289]
[1765821877002,0.87749,85747.0,85746.0,0.0341289]
[1765821877207,0.87749,85747.0,85746.0,0.11788553]
[1765821877418,0.87749,85747.0,85746.0,0.10622303]
[1765821877618,0.87749,85747.0,85746.0,0.10822303]
[1765821878007,0.87749,85747.0,85746.0,0.0244664]
[1765821878203,1.23829,85747.0,85746.0,0.0244664]
[1765821878614,1.23829,85747.0,85745.0,0.00017485]
[1765821878615,0.7191525,85746.0,85745.0,0.00017485]
[1765821878912,0.7191531,85742.0,85741.0,0.00012656]
[1765821879121,0.7191531,85742.0,85741.0,0.02097235]
[1765821879122,0.8991531,85742.0,85741.0,0.02097235]
[1765821879315,0.70749,85732.0,85731.0,0.10468097]
[1765821879511,0.70749,85732.0,85730.0,0.10468097]
[1765821879512,0.70749,85731.0,85730.0,0.10468097]
[1765821879708,0.7191551,85727.0,85726.0,0.10468097]
[1765821879910,0.9191551,85727.0,85726.0,0.10468097]
[1765821880204,0.9191551,85727.0,85722.0,0.00017496]
[1765821880205,0.90488,85723.0,85722.0,0.00017496]
[1765821880405,0.70749,85708.0,85707.0,0.0116678]
[1765821880606,0.89749,85708.0,85707.0,0.0116678]
[1765821880803,0.70749,85704.0,85703.0,0.14560953]
[1765821881022,0.89749,85704.0,85703.0,0.14560953]
[1765821881208,0.89749,85704.0,85703.0,0.0209768]
[1765821881409,0.70749,85701.0,85700.0,4e-05]
[1765821881608,1.07488,85701.0,85700.0,4e-05]
[1765821882011,1.07488,85701.0,85700.0,0.02041194]
[1765821882316,1.07488,85701.0,85700.0,0.01647591]
[1765821882519,0.70749,85699.0,85698.0,0.00233379]
[1765821882719,0.88749,85699.0,85698.0,0.00233379]
[1765821883115,0.88749,85699.0,85698.0,0.02316094]
[1765821883324,0.8876092,85699.0,85698.0,0.02316094]
[1765821883909,0.8876092,85699.0,85698.0,0.02156036]
[1765821884109,0.70749,85696.0,85695.0,4.96e-06]
[1765821884316,0.70749,85696.0,85692.0,9.728e-05]
[1765821884317,0.7191607,85686.0,85685.0,0.14560953]
[1765821884512,0.9165517,85679.0,85678.0,0.14560953]
[1765821884717,1.0765517,85679.0,85678.0,0.14560953]
[1765821884917,1.0765517,85679.0,85678.0,0.02048152]
[1765821885207,0.70749,85675.0,85674.0,0.14560953]
[1765821885414,0.89749,85675.0,85674.0,0.16636547]
[1765821886117,0.89749,85675.0,85674.0,0.02075594]
[1765821886324,0.70749,85673.0,85672.0,0.14560953]
[1765821886522,0.70749,85673.0,85667.0,0.14560953]
[1765821886523,0.90488,85668.0,85667.0,0.14560953]
[1765821886711,0.89749,85668.0,85667.0,0.14560953]
[1765821887019,0.89749,85668.0,85667.0,0.16676047]